[Event "WSTCC-65 2020"]
[Site "Prague"]
[Date "2020.03.09"]
[Round "4.19"]
[White "Christiansen, Arne"]
[Black "Salov, Sergej"]
[Result "1/2-1/2"]
[ECO "E68"]
[WhiteElo "2016"]
[BlackElo "2135"]
[Annotator "ChessBase"]
[PlyCount "29"]
[EventDate "2020.03.06"]
[EventType "team-tourn"]
[EventCountry "CZE"]
[SourceTitle "playchess.com"]
[Source "ChessBase"]
[SourceQuality "1"]
[TimeControl "40/5400+30:1800+30"]

1. d4 {[%emt 0:00:00]} Nf6 {[%emt 0:00:00]} 2. c4 {[%emt 0:00:00]} d6 {[%emt 0:00:28]} 3. Nf3 {[%emt 0:00:00]} g6 {[%emt 0:00:16]} 4. Nc3 {[%emt 0:00:03]} Nbd7 {[%emt 0:00:18]} 5. g3 {[%emt 0:01:22]} Bg7 {[%emt 0:00:24]} 6. Bg2 {[%emt 0:00:07]} O-O {[%emt 0:00:11]} 7. O-O {[%emt 0:00:05]} e5 {[%emt 0:00:09]} 8. e4 {[%emt 0:01:47]} c6 {[%emt 0:02:05]} 9. dxe5 {[%emt 0:07:37]} dxe5 {[%emt 0:00:29]} 10. h3 {[%emt 0:01:42]} Re8 {[%emt 0:06:21]} 11. Be3 {[%emt 0:00:48]} Qe7 {[%emt 0:03:50]} 12. Qc2 {[%emt 0:01:58]} Nc5 {[%emt 0:06:01]} 13. Rad1 {[%emt 0:02:45]} Nh5 {[%emt 0:11:04]} 14. b4 {[%emt 0:07:36]} Ne6 {[%emt 0:02:43]} 15. c5 {[%emt 0:05:54]} 1/2-1/2

[Event "WSTCC-65 2020"]
[Site "Prague"]
[Date "2020.03.09"]
[Round "4.20"]
[White "Gruzmann, Boris"]
[Black "Jorgensen, Brian Jorgen"]
[Result "1/2-1/2"]
[ECO "B12"]
[WhiteElo "2206"]
[BlackElo "2217"]
[Annotator "ChessBase"]
[PlyCount "38"]
[EventDate "2020.03.06"]
[EventType "team-tourn"]
[EventCountry "CZE"]
[SourceTitle "playchess.com"]
[Source "ChessBase"]
[SourceQuality "1"]
[TimeControl "40/5400+30:1800+30"]

1. e4 {[%emt 0:00:00]} c6 {[%emt 0:00:00]} 2. d4 {[%emt 0:00:00]} d5 {[%emt 0:00:00]} 3. e5 {[%emt 0:00:01]} Bf5 {[%emt 0:00:00]} 4. Nd2 {[%emt 0:00:11]} e6 {[%emt 0:00:10]} 5. Nb3 {[%emt 0:00:05]} Nd7 {[%emt 0:00:17]} 6. Nf3 {[%emt 0:00:13]} Ne7 {[%emt 0:00:26]} 7. Be3 {[%emt 0:04:33]} Nc8 {[%emt 0:04:31]} 8. Qd2 {[%emt 0:07:02]} Be7 {[%emt 0:00:32]} 9. Be2 {[%emt 0:00:35]} O-O {[%emt 0:01:25]} 10. O-O {[%emt 0:06:47]} f6 {[%emt 0:09:52]} 11. c4 {[%emt 0:01:37]} dxc4 {[%emt 0:07:35]} 12. Na5 {[%emt 0:01:11]} Qc7 {[%emt 0:12:50]} 13. Nxc4 {[%emt 0:03:44]} Ncb6 {[%emt 0:02:05]} 14. Qa5 {[%emt 0:14:53]} Nd5 {[%emt 0:06:13]} 15. Qxc7 {[%emt 0:00:12]} Nxc7 {[%emt 0:00:06]} 16. Na5 {[%emt 0:02:28]} Nd5 {[%emt 0:07:53]} 17. exf6 {[%emt 0:05:05]} Bxf6 {[%emt 0:02:59]} 18. Rac1 {[%emt 0:04:05]} Rab8 {[%emt 0:01:18]} 19. Nc4 {[%emt 0:10:14]} h6 {[%emt 0:06:45]} 1/2-1/2

[Event "WSTCC-65 2020"]
[Site "Prague"]
[Date "2020.03.09"]
[Round "4.21"]
[White "Huss, Andreas"]
[Black "Ackermann, Hans Werner"]
[Result "1/2-1/2"]
[ECO "A41"]
[WhiteElo "2253"]
[BlackElo "2242"]
[Annotator "ChessBase"]
[PlyCount "50"]
[EventDate "2020.03.06"]
[EventType "team-tourn"]
[EventCountry "CZE"]
[SourceTitle "playchess.com"]
[Source "ChessBase"]
[SourceQuality "1"]
[TimeControl "40/5400+30:1800+30"]

1. d4 {[%emt 0:01:12]} d6 {[%emt 0:00:00]} 2. e4 {[%emt 0:00:55]} g6 {[%emt 0:00:00]} 3. Nf3 {[%emt 0:00:33]} Bg7 {[%emt 0:00:12]} 4. Bd3 {[%emt 0:01:41]} Nf6 {[%emt 0:01:48]} 5. c3 {[%emt 0:02:19]} O-O {[%emt 0:00:54]} 6. O-O {[%emt 0:00:27]} Nc6 {[%emt 0:01:52]} 7. Bg5 {[%emt 0:03:57]} h6 {[%emt 0:08:23]} 8. Bh4 {[%emt 0:00:30]} e5 {[%emt 0:03:26]} 9. dxe5 {[%emt 0:01:51]} dxe5 {[%emt 0:04:59]} 10. Qc2 {[%emt 0:00:41]} g5 {[%emt 0:06:04]} 11. Bg3 {[%emt 0:00:49]} Nh5 {[%emt 0:01:37]} 12. Rd1 {[%emt 0:02:46]} Qf6 {[%emt 0:12:45]} 13. Nbd2 {[%emt 0:01:47]} Nf4 {[%emt 0:05:52]} 14. b4 {[%emt 0:16:18]} Ne7 {[%emt 0:22:29]} 15. Nc4 {[%emt 0:05:30]} Neg6 {[%emt 0:04:34]} 16. Ne3 {[%emt 0:04:06]} Ne7 {[%emt 0:05:22]} 17. Bc4 {[%emt 0:05:48]} c6 {[%emt 0:03:56]} 18. Rd2 {[%emt 0:06:08]} Neg6 {[%emt 0:05:20]} 19. Rad1 {[%emt 0:03:38]} Qe7 {[%emt 0:02:04]} 20. Nf5 {[%emt 0:08:14]} Qc7 {[%emt 0:00:58]} 21. Rd6 {[%emt 0:04:34]} Kh7 {[%emt 0:02:10]} 22. Nxg7 {[%emt 0:15:41]} Kxg7 {[%emt 0:00:18]} 23. h4 {[%emt 0:00:06]} Bg4 {[%emt 0:03:50]} 24. hxg5 {[%emt 0:00:49]} hxg5 {[%emt 0:00:11]} 25. Bxf4 {[%emt 0:03:10]} gxf4 {[%emt 0:00:39]} 1/2-1/2

[Event "WSTCC-65 2020"]
[Site "Prague"]
[Date "2020.03.09"]
[Round "4.22"]
[White "Baum, Bernd"]
[Black "Kradolfer, Georg"]
[Result "1-0"]
[ECO "A30"]
[WhiteElo "2249"]
[BlackElo "1991"]
[Annotator "ChessBase"]
[PlyCount "73"]
[EventDate "2020.03.06"]
[EventType "team-tourn"]
[EventCountry "CZE"]
[SourceTitle "playchess.com"]
[Source "ChessBase"]
[SourceQuality "1"]
[TimeControl "40/5400+30:1800+30"]

1. c4 {[%emt 0:00:23]} c5 {[%emt 0:00:07]} 2. Nf3 {[%emt 0:00:18]} Nf6 {[%emt 0:00:30]} 3. g3 {[%emt 0:01:24]} Nc6 {[%emt 0:00:47]} 4. Bg2 {[%emt 0:00:42]} d5 {[%emt 0:01:16]} 5. cxd5 {[%emt 0:00:37]} Nxd5 {[%emt 0:00:12]} 6. Nc3 {[%emt 0:00:55]} Nxc3 {[%emt 0:03:40]} 7. bxc3 {[%emt 0:00:43]} e5 {[%emt 0:00:45]} 8. d3 {[%emt 0:00:47]} Be7 {[%emt 0:00:30]} 9. O-O {[%emt 0:00:26]} O-O {[%emt 0:00:18]} 10. Rb1 {[%emt 0:05:55]} Rb8 {[%emt 0:01:43]} 11. Nd2 {[%emt 0:02:53]} Be6 {[%emt 0:04:36]} 12. Qa4 {[%emt 0:00:59]} Bd7 {[%emt 0:03:22]} 13. Qc2 {[%emt 0:02:35]} Qc7 {[%emt 0:06:33]} 14. Nc4 {[%emt 0:02:46]} f6 {[%emt 0:08:51]} 15. f4 {[%emt 0:04:31]} b5 {[%emt 0:05:17]} 16. Ne3 {[%emt 0:01:05]} Be6 {[%emt 0:04:30]} 17. Nd5 {[%emt 0:04:44]} Qd7 {[%emt 0:02:24]} 18. e4 {[%emt 0:02:20]} Bd6 {[%emt 0:07:50]} 19. f5 {[%emt 0:12:07]} Bf7 {[%emt 0:00:15]} 20. g4 {[%emt 0:01:26]} c4 {[%emt 0:21:02]} 21. Be3 {[%emt 0:05:11]} Bxd5 {[%emt 0:02:21]} 22. exd5 {[%emt 0:00:04]} Ne7 {[%emt 0:00:11]} 23. dxc4 {[%emt 0:05:31]} bxc4 {[%emt 0:00:20]} 24. Qf2 {[%emt 0:01:03]} Rxb1 {[%emt 0:01:37]} 25. Rxb1 {[%emt 0:00:03]} Rb8 {[%emt 0:00:19]} 26. Rxb8+ {[%emt 0:03:51]} Bxb8 {[%emt 0:00:02]} 27. Qe2 {[%emt 0:01:34]} h5 {[%emt 0:07:32]} 28. Qxc4 {[%emt 0:02:15]} Kh8 {[%emt 0:01:02]} 29. h3 {[%emt 0:02:06]} hxg4 {[%emt 0:01:45]} 30. hxg4 {[%emt 0:00:21]} g5 {[%emt 0:04:12]} 31. Qa6 {[%emt 0:05:29]} Kg7 {[%emt 0:00:56]} 32. c4 {[%emt 0:00:26]} Qc8 {[%emt 0:05:05]} 33. Qxc8 {[%emt 0:02:00]} Nxc8 {[%emt 0:00:02]} 34. c5 {[%emt 0:00:34]} Kf7 {[%emt 0:00:48]} 35. d6 {[%emt 0:01:08]} Ke8 {[%emt 0:00:47]} 36. Bc6+ {[%emt 0:01:22]} Kd8 {[%emt 0:00:12]} 37. Bd2 {[%emt 0:00:21]} 1-0

[Event "WSTCC-65 2020"]
[Site "Prague"]
[Date "2020.03.09"]
[Round "4.23"]
[White "Illi, Hans-Joerg"]
[Black "Kierzek, Matthias"]
[Result "0-1"]
[ECO "B11"]
[WhiteElo "1960"]
[BlackElo "2217"]
[Annotator "ChessBase"]
[PlyCount "82"]
[EventDate "2020.03.06"]
[EventType "team-tourn"]
[EventCountry "CZE"]
[SourceTitle "playchess.com"]
[Source "ChessBase"]
[SourceQuality "1"]
[TimeControl "40/5400+30:1800+30"]

1. e4 {[%emt 0:00:00]} c6 {[%emt 0:00:00]} 2. Nc3 {[%emt 0:01:08]} d5 {[%emt 0:00:00]} 3. Nf3 {[%emt 0:00:40]} Bg4 {[%emt 0:00:00]} 4. h3 {[%emt 0:02:23]} Bxf3 {[%emt 0:00:19]} 5. Qxf3 {[%emt 0:00:25]} e6 {[%emt 0:00:10]} 6. d4 {[%emt 0:01:04]} Nf6 {[%emt 0:00:21]} 7. exd5 {[%emt 0:10:46]} cxd5 {[%emt 0:01:13]} 8. Bb5+ {[%emt 0:01:50]} Nc6 {[%emt 0:00:56]} 9. O-O {[%emt 0:00:27]} Rc8 {[%emt 0:03:08]} 10. Ne2 {[%emt 0:01:37]} Qb6 {[%emt 0:05:28]} 11. Bxc6+ {[%emt 0:06:01]} Rxc6 {[%emt 0:00:10]} 12. c3 {[%emt 0:00:21]} Be7 {[%emt 0:05:00]} 13. Nf4 {[%emt 0:01:26]} O-O {[%emt 0:07:43]} 14. Nd3 {[%emt 0:14:12]} Ne4 {[%emt 0:11:31]} 15. Rd1 {[%emt 0:06:56]} f6 {[%emt 0:09:58]} 16. Be3 {[%emt 0:03:10]} Bd6 {[%emt 0:01:07]} 17. Qe2 {[%emt 0:01:58]} Qc7 {[%emt 0:01:24]} 18. a3 {[%emt 0:08:37]} f5 {[%emt 0:08:18]} 19. f4 {[%emt 0:16:49]} Qe7 {[%emt 0:07:38]} 20. Ne5 {[%emt 0:02:28]} Bxe5 {[%emt 0:00:15]} 21. dxe5 {[%emt 0:01:06]} a6 {[%emt 0:02:11]} 22. Rd4 {[%emt 0:02:04]} Rfc8 {[%emt 0:01:21]} 23. Rad1 {[%emt 0:06:19]} b5 {[%emt 0:01:59]} 24. Kh2 {[%emt 0:00:52]} Qh4 {[%emt 0:04:42]} 25. Qe1 {[%emt 0:00:24]} Qh5 {[%emt 0:00:37]} 26. Bf2 {[%emt 0:01:59]} Rc4 {[%emt 0:01:22]} 27. R1d3 {[%emt 0:01:24]} h6 {[%emt 0:03:14]} 28. Bg3 {[%emt 0:01:24]} Rxd4 29. Rxd4 {[%emt 0:00:09]} Rc4 {[%emt 0:04:36]} 30. Rd3 {[%emt 0:00:47]} Nxg3 {[%emt 0:08:52]} 31. Qxg3 {[%emt 0:00:23]} Qe2 {[%emt 0:00:08]} 32. Re3 {[%emt 0:00:21]} Qd2 {[%emt 0:00:55]} 33. Rf3 {[%emt 0:00:26]} Kh7 {[%emt 0:01:15]} 34. h4 {[%emt 0:00:09]} g6 {[%emt 0:01:27]} 35. h5 {[%emt 0:00:20]} g5 {[%emt 0:00:25]} 36. Rf2 {[%emt 0:00:58]} Qc1 {[%emt 0:00:43]} 37. fxg5 {[%emt 0:03:07]} hxg5 {[%emt 0:00:11]} 38. Qd3 {[%emt 0:01:32]} Rh4+ {[%emt 0:03:15]} 39. Kg3 {[%emt 0:00:04]} Kh6 {[%emt 0:00:55]} 40. Rxf5 {[%emt 0:00:00]} exf5 {[%emt 0:00:00]} 41. Qxf5 {[%emt 0:01:52]} Qe1+ {[%emt 0:01:54]} 0-1

[Event "WSTCC-65 2020"]
[Site "Prague"]
[Date "2020.03.09"]
[Round "4.26"]
[White "Becker, Norbert"]
[Black "Sandmeier, Toni"]
[Result "1/2-1/2"]
[ECO "B08"]
[WhiteElo "2107"]
[BlackElo "2190"]
[Annotator "ChessBase"]
[PlyCount "40"]
[EventDate "2020.03.06"]
[EventType "team-tourn"]
[EventCountry "CZE"]
[SourceTitle "playchess.com"]
[Source "ChessBase"]
[SourceQuality "1"]
[TimeControl "40/5400+30:1800+30"]

1. Nf3 {[%emt 0:00:00]} g6 {[%emt 0:00:00]} 2. e4 {[%emt 0:00:49]} Nf6 {[%emt 0:00:04]} 3. Nc3 {[%emt 0:00:42]} d6 {[%emt 0:00:11]} 4. d4 {[%emt 0:00:35]} Bg7 {[%emt 0:00:09]} 5. Bf4 {[%emt 0:05:28]} O-O {[%emt 0:00:40]} 6. Qd2 {[%emt 0:01:00]} c6 {[%emt 0:04:46]} 7. Bh6 {[%emt 0:01:07]} b5 {[%emt 0:00:49]} 8. Bxg7 {[%emt 0:06:29]} Kxg7 {[%emt 0:00:11]} 9. a3 {[%emt 0:01:54]} a5 {[%emt 0:06:43]} 10. Bd3 {[%emt 0:07:46]} Bg4 {[%emt 0:08:04]} 11. Qf4 {[%emt 0:03:34]} Bxf3 {[%emt 0:08:29]} 12. Qxf3 {[%emt 0:00:25]} Nbd7 {[%emt 0:02:12]} 13. O-O {[%emt 0:04:43]} Qb6 {[%emt 0:00:53]} 14. Ne2 {[%emt 0:06:43]} e5 {[%emt 0:06:30]} 15. c3 {[%emt 0:01:05]} Rfe8 {[%emt 0:07:54]} 16. Bc2 {[%emt 0:05:28]} c5 {[%emt 0:15:46]} 17. d5 {[%emt 0:03:50]} c4 {[%emt 0:09:52]} 18. g4 {[%emt 0:04:13]} h6 {[%emt 0:01:57]} 19. Ng3 {[%emt 0:01:50]} Nh7 {[%emt 0:00:59]} 20. Kg2 {[%emt 0:06:15]} Qd8 {[%emt 0:00:43]} 1/2-1/2

[Event "WSTCC-65 2020"]
[Site "Prague"]
[Date "2020.03.09"]
[Round "4.27"]
[White "Dekan, Hans"]
[Black "Mueller, Gerhard"]
[Result "1/2-1/2"]
[ECO "B92"]
[WhiteElo "2099"]
[BlackElo "2095"]
[Annotator "ChessBase"]
[PlyCount "37"]
[EventDate "2020.03.06"]
[EventType "team-tourn"]
[EventCountry "CZE"]
[SourceTitle "playchess.com"]
[Source "ChessBase"]
[SourceQuality "1"]
[TimeControl "40/5400+30:1800+30"]

1. e4 {[%emt 0:00:00]} c5 {[%emt 0:00:00]} 2. Nf3 {[%emt 0:00:00]} d6 {[%emt 0:00:00]} 3. d4 {[%emt 0:00:04]} cxd4 {[%emt 0:00:00]} 4. Nxd4 {[%emt 0:00:10]} Nf6 {[%emt 0:00:00]} 5. Nc3 {[%emt 0:00:15]} a6 {[%emt 0:00:00]} 6. Be2 {[%emt 0:00:16]} e5 {[%emt 0:00:03]} 7. Nb3 {[%emt 0:01:01]} Be7 {[%emt 0:00:06]} 8. Bg5 {[%emt 0:01:29]} Nbd7 {[%emt 0:07:20]} 9. Qd3 {[%emt 0:03:40]} O-O {[%emt 0:02:04]} 10. O-O-O {[%emt 0:01:44]} b5 {[%emt 0:01:08]} 11. a4 {[%emt 0:01:55]} b4 {[%emt 0:03:57]} 12. Bxf6 {[%emt 0:00:34]} Nxf6 {[%emt 0:01:39]} 13. Nd5 {[%emt 0:00:12]} Nxd5 {[%emt 0:00:37]} 14. Qxd5 {[%emt 0:00:08]} Be6 {[%emt 0:01:31]} 15. Qa5 {[%emt 0:04:29]} Bg5+ {[%emt 0:03:32]} 16. Kb1 {[%emt 0:00:40]} Bxb3 {[%emt 0:00:11]} 17. Qxd8 {[%emt 0:00:22]} Bxc2+ {[%emt 0:00:08]} 18. Kxc2 {[%emt 0:00:08]} Rfxd8 {[%emt 0:00:10]} 19. Kb3 {[%emt 0:02:34]} 1/2-1/2

[Event "WSTCC-65 2020"]
[Site "Prague"]
[Date "2020.03.09"]
[Round "4.28"]
[White "Thoele, Wolfgang"]
[Black "Staub, Gerhard"]
[Result "1/2-1/2"]
[ECO "B24"]
[WhiteElo "1875"]
[BlackElo "1986"]
[Annotator "ChessBase"]
[PlyCount "43"]
[EventDate "2020.03.06"]
[EventType "team-tourn"]
[EventCountry "CZE"]
[SourceTitle "playchess.com"]
[Source "ChessBase"]
[SourceQuality "1"]
[TimeControl "40/5400+30:1800+30"]

1. e4 {[%emt 0:00:00]} c5 {[%emt 0:00:00]} 2. Nc3 {[%emt 0:00:00]} Nc6 {[%emt 0:00:00]} 3. d3 {[%emt 0:00:06]} g6 {[%emt 0:01:07]} 4. Be3 {[%emt 0:00:37]} d6 {[%emt 0:00:52]} 5. Qd2 {[%emt 0:01:52]} Bg7 {[%emt 0:01:16]} 6. g3 {[%emt 0:03:01]} b5 {[%emt 0:04:49]} 7. Bg2 {[%emt 0:03:43]} b4 {[%emt 0:06:02]} 8. Nd1 {[%emt 0:00:27]} Bb7 {[%emt 0:05:43]} 9. Ne2 {[%emt 0:01:48]} e6 {[%emt 0:04:45]} 10. O-O {[%emt 0:01:24]} Nge7 {[%emt 0:01:19]} 11. Bh6 {[%emt 0:08:24]} O-O {[%emt 0:01:44]} 12. Bxg7 {[%emt 0:00:08]} Kxg7 {[%emt 0:00:40]} 13. Ne3 {[%emt 0:02:25]} a5 {[%emt 0:06:27]} 14. f4 {[%emt 0:03:33]} f5 {[%emt 0:01:48]} 15. exf5 {[%emt 0:06:01]} Nxf5 {[%emt 0:03:15]} 16. Nxf5+ {[%emt 0:00:29]} gxf5 {[%emt 0:06:58]} 17. Qe3 {[%emt 0:18:03]} Qb6 {[%emt 0:04:58]} 18. c3 {[%emt 0:07:30]} Rae8 {[%emt 0:09:28]} 19. d4 {[%emt 0:11:21]} cxd4 {[%emt 0:00:58]} 20. Nxd4 {[%emt 0:05:01]} Nxd4 {[%emt 0:00:22]} 21. Qxd4+ {[%emt 0:03:04]} Qxd4+ {[%emt 0:00:05]} 22. cxd4 1/2-1/2

[Event "WSTCC-65 2020"]
[Site "Prague"]
[Date "2020.03.09"]
[Round "4.29"]
[White "Rooze, Jan"]
[Black "Pribyl, Josef"]
[Result "1-0"]
[ECO "B08"]
[WhiteElo "2245"]
[BlackElo "2225"]
[Annotator "RC"]
[PlyCount "107"]
[EventDate "2020.03.06"]
[EventType "team-tourn"]
[EventCountry "CZE"]
[SourceTitle "playchess.com"]
[Source "ChessBase"]
[SourceQuality "1"]
[TimeControl "40/5400+30:1800+30"]

1. e4 {[%emt 0:00:00]} d6 {[%emt 0:00:00]} 2. d4 {[%emt 0:00:00]} Nf6 {[%emt 0:00:00]} 3. Nc3 {[%emt 0:00:00]} g6 {[%emt 0:00:00]} 4. Nf3 {[%emt 0:00:00]} Bg7 {[%emt 0:00:02]} 5. Be2 {[%emt 0:00:02]} O-O {[%emt 0:00:16]} 6. O-O {[%emt 0:00:05]} c6 {[%emt 0:01:25]} 7. a4 {[%emt 0:00:34]} a5 {[%emt 0:00:23]} 8. h3 {[%emt 0:03:59]} Na6 {[%emt 0:00:02]} 9. Be3 {[%emt 0:00:54]} Nb4 {[%emt 0:00:02]} 10. Qd2 {[%emt 0:10:08]} Qc7 {[%emt 0:00:03]} 11. Rad1 {[%emt 0:08:10]} Re8 {[%emt 0:00:30]} 12. Qc1 {[%emt 0:09:14]} Bd7 {[%emt 0:00:51]} 13. Rfe1 {[%emt 0:08:04]} Rad8 {[%emt 0:00:11]} 14. Bc4 {[%emt 0:04:27]} Bc8 {[%emt 0:07:20]} 15. Bb3 {[%emt 0:01:44]} e6 {[%emt 0:14:22]} 16. Bf4 {[%emt 0:05:43]} Rd7 {[%emt 0:02:42]} 17. e5 {[%emt 0:03:41]} Nfd5 {[%emt 0:06:08]} 18. exd6 Qd8 {[%emt 0:00:06]} 19. Be5 {[%emt 0:04:36]} Nf6 {[%emt 0:11:42]} 20. Ne4 {[%emt 0:03:07]} b6 {[%emt 0:04:31]} 21. Bxf6 {[%emt 0:03:30]} Bxf6 {[%emt 0:00:03]} 22. Ne5 {[%emt 0:00:04]} Rxd6 {[%emt 0:02:15]} 23. Nxd6 {[%emt 0:02:11]} Qxd6 {[%emt 0:00:03]} 24. Qf4 {[%emt 0:01:29]} Qe7 {[%emt 0:03:53]} 25. c3 {[%emt 0:01:21]} Nd5 {[%emt 0:00:39]} 26. Qf3 {[%emt 0:02:19]} Bb7 {[%emt 0:00:42]} 27. Bxd5 {[%emt 0:04:02]} cxd5 {[%emt 0:00:23]} 28. Qd3 {[%emt 0:00:56]} Qc7 {[%emt 0:02:06]} 29. Re3 {[%emt 0:02:04]} Bg7 {[%emt 0:01:29]} 30. Rde1 {[%emt 0:00:43]} f6 {[%emt 0:03:53]} 31. Nf3 {[%emt 0:00:21]} e5 {[%emt 0:00:42]} 32. dxe5 {[%emt 0:01:37]} fxe5 {[%emt 0:00:03]} 33. Qe2 {[%emt 0:06:26]} e4 {[%emt 0:00:36]} 34. Nd4 {[%emt 0:00:19]} Be5 {[%emt 0:05:59]} 35. Qb5 {[%emt 0:04:53]} Re7 {[%emt 0:03:12]} 36. R3e2 {[%emt 0:00:19]} Bh2+ {[%emt 0:01:34]} 37. Kh1 {[%emt 0:01:07]} Be5 {[%emt 0:01:00]} 38. Nc2 {[%emt 0:01:20]} Bc6 {[%emt 0:07:45]} 39. Qb3 {[%emt 0:00:57]} Kg7 {[%emt 0:00:02]} 40. Ne3 {[%emt 0:00:00]} Rd7 {[%emt 0:00:00]} 41. Rd1 {[%emt 0:05:00]} Qd8 {[%emt 0:04:09]} 42. Red2 {[%emt 0:02:04]} Bf4 {[%emt 0:09:12]} 43. Rd4 {[%emt 0:03:10]} Be5 {[%emt 0:03:03]} 44. Rxd5 {[%emt 0:01:55]} Bxd5 {[%emt 0:01:28]} 45. Rxd5 {[%emt 0:00:07]} Bc7 {[%emt 0:01:07]} 46. Qc4 {[%emt 0:01:11]} Rxd5 {[%emt 0:03:05]} 47. Nxd5 {[%emt 0:00:16]} Bd6 {[%emt 0:01:47]} 48. Qxe4 {[%emt 0:01:32]} Qg5 {[%emt 0:04:31]} 49. g3 {[%emt 0:01:36]} Bc5 {[%emt 0:04:18]} 50. Kg2 {[%emt 0:01:19]} Qd2 {[%emt 0:01:14]} 51. Qe5+ {[%emt 0:01:51]} Kg8 {[%emt 0:02:41]} 52. Nf6+ {[%emt 0:01:55]} Kf7 {[%emt 0:00:12]} 53. Ne4 {[%emt 0:01:28]} Qd7 {[%emt 0:02:36]} 54. Qf6+ {[%emt 0:03:18]} 1-0

[Event "WSTCC-65 2020"]
[Site "Prague"]
[Date "2020.03.09"]
[Round "4.32"]
[White "Cesal, Jaroslav"]
[Black "Schrickx, Frank"]
[Result "0-1"]
[ECO "D37"]
[WhiteElo "2136"]
[BlackElo "1826"]
[Annotator "ChessBase"]
[PlyCount "52"]
[EventDate "2020.03.06"]
[EventType "team-tourn"]
[EventCountry "CZE"]
[SourceTitle "playchess.com"]
[Source "ChessBase"]
[SourceQuality "1"]
[TimeControl "40/5400+30:1800+30"]

1. d4 {[%emt 0:00:00]} d5 {[%emt 0:00:00]} 2. Nf3 {[%emt 0:00:00]} Nf6 {[%emt 0:00:00]} 3. c4 {[%emt 0:00:00]} e6 {[%emt 0:00:01]} 4. Nc3 {[%emt 0:00:00]} Be7 {[%emt 0:00:27]} 5. Bg5 {[%emt 0:00:06]} c6 {[%emt 0:00:37]} 6. e3 {[%emt 0:01:53]} Nbd7 {[%emt 0:00:30]} 7. Qc2 {[%emt 0:00:43]} O-O {[%emt 0:01:41]} 8. h3 {[%emt 0:01:37]} h6 {[%emt 0:02:20]} 9. Bf4 {[%emt 0:01:07]} b6 {[%emt 0:04:38]} 10. Bd3 {[%emt 0:02:51]} Bb7 {[%emt 0:01:19]} 11. O-O {[%emt 0:00:29]} dxc4 {[%emt 0:07:52]} 12. Bxc4 {[%emt 0:00:08]} Nd5 {[%emt 0:02:48]} 13. Bg3 {[%emt 0:04:41]} Nxc3 {[%emt 0:01:50]} 14. bxc3 {[%emt 0:02:20]} c5 {[%emt 0:01:06]} 15. Rad1 {[%emt 0:03:38]} Qc8 {[%emt 0:04:11]} 16. d5 {[%emt 0:03:20]} exd5 {[%emt 0:02:01]} 17. Bxd5 {[%emt 0:00:37]} Bxd5 {[%emt 0:00:44]} 18. Rxd5 {[%emt 0:00:06]} Nf6 {[%emt 0:01:11]} 19. Rd2 {[%emt 0:10:02]} Qb7 {[%emt 0:04:47]} 20. Ne5 {[%emt 0:03:22]} Rad8 {[%emt 0:01:55]} 21. Rfd1 {[%emt 0:03:42]} Rxd2 {[%emt 0:06:34]} 22. Rxd2 {[%emt 0:00:15]} Rd8 {[%emt 0:00:30]} 23. Rxd8+ {[%emt 0:05:14]} Bxd8 {[%emt 0:00:02]} 24. Qd3 {[%emt 0:03:51]} Bc7 {[%emt 0:05:25]} 25. c4 {[%emt 0:04:50]} Qe4 {[%emt 0:09:30]} 26. Kh2 {[%emt 0:15:39]} Bxe5 {[%emt 0:06:19]} 0-1

[Event "WSTCC-65 2020"]
[Site "Prague"]
[Date "2020.03.09"]
[Round "4.33"]
[White "Waschk, Armin"]
[Black "Herzog, Adolf"]
[Result "0-1"]
[ECO "D37"]
[WhiteElo "2165"]
[BlackElo "2312"]
[Annotator "ChessBase"]
[PlyCount "100"]
[EventDate "2020.03.06"]
[EventType "team-tourn"]
[EventCountry "CZE"]
[SourceTitle "playchess.com"]
[Source "ChessBase"]
[SourceQuality "1"]
[TimeControl "40/5400+30:1800+30"]

1. d4 {[%emt 0:00:00]} e6 {[%emt 0:00:00]} 2. c4 {[%emt 0:00:00]} Nf6 {[%emt 0:00:11]} 3. Nf3 {[%emt 0:00:01]} d5 {[%emt 0:00:08]} 4. Nc3 {[%emt 0:01:02]} Be7 {[%emt 0:02:00]} 5. Bg5 {[%emt 0:02:07]} Nbd7 {[%emt 0:02:16]} 6. e3 {[%emt 0:00:40]} h6 {[%emt 0:00:26]} 7. Bh4 {[%emt 0:00:07]} O-O {[%emt 0:00:11]} 8. Rc1 {[%emt 0:01:19]} b6 {[%emt 0:04:13]} 9. cxd5 {[%emt 0:03:13]} exd5 {[%emt 0:00:17]} 10. Bd3 {[%emt 0:05:41]} Bb7 {[%emt 0:01:49]} 11. O-O {[%emt 0:00:09]} Ne4 {[%emt 0:02:11]} 12. Bxe7 {[%emt 0:00:13]} Qxe7 {[%emt 0:00:09]} 13. Re1 {[%emt 0:02:34]} Rfc8 {[%emt 0:06:45]} 14. Bb1 {[%emt 0:01:42]} c5 {[%emt 0:04:52]} 15. Nd2 {[%emt 0:11:34]} Ndf6 {[%emt 0:10:09]} 16. f3 {[%emt 0:00:34]} Nxc3 {[%emt 0:03:16]} 17. bxc3 {[%emt 0:10:02]} Re8 {[%emt 0:05:26]} 18. Nf1 {[%emt 0:09:02]} Rac8 {[%emt 0:04:10]} 19. Qd3 {[%emt 0:01:22]} g6 {[%emt 0:02:08]} 20. Qd2 {[%emt 0:01:40]} Kg7 {[%emt 0:00:27]} 21. Bd3 {[%emt 0:01:31]} Qd7 {[%emt 0:02:42]} 22. Qb2 {[%emt 0:03:46]} Re7 {[%emt 0:01:22]} 23. Qa3 {[%emt 0:01:39]} a6 {[%emt 0:05:07]} 24. Qb2 {[%emt 0:04:41]} b5 {[%emt 0:00:10]} 25. a3 {[%emt 0:00:22]} c4 {[%emt 0:01:05]} 26. Bb1 {[%emt 0:00:12]} Rce8 {[%emt 0:00:35]} 27. Re2 {[%emt 0:00:36]} Nh5 {[%emt 0:02:07]} 28. Rce1 {[%emt 0:00:35]} Re6 {[%emt 0:03:38]} 29. g4 {[%emt 0:02:03]} Nf6 {[%emt 0:00:51]} 30. Ng3 {[%emt 0:00:19]} Qe7 {[%emt 0:01:13]} 31. Qd2 {[%emt 0:00:09]} Qxa3 {[%emt 0:04:45]} 32. h4 {[%emt 0:00:27]} Qd6 {[%emt 0:03:20]} 33. Rg2 {[%emt 0:00:12]} R6e7 {[%emt 0:04:49]} 34. h5 {[%emt 0:01:08]} Bc8 {[%emt 0:01:59]} 35. hxg6 {[%emt 0:00:11]} fxg6 {[%emt 0:00:07]} 36. Qc2 {[%emt 0:11:36]} Nh7 {[%emt 0:00:50]} 37. Nh5+ {[%emt 0:00:54]} Kf7 {[%emt 0:02:55]} 38. e4 {[%emt 0:00:51]} Ng5 {[%emt 0:06:27]} 39. e5 {[%emt 0:01:51]} Qb6 {[%emt 0:05:02]} 40. Kh1 {[%emt 0:00:00]} gxh5 {[%emt 0:00:00]} 41. f4 {[%emt 0:02:57]} Ne4 {[%emt 0:02:12]} 42. Rxe4 {[%emt 0:00:06]} dxe4 {[%emt 0:00:33]} 43. Qxe4 {[%emt 0:00:05]} Rg8 {[%emt 0:01:28]} 44. f5 {[%emt 0:01:31]} Rxg4 {[%emt 0:01:38]} 45. Rxg4 {[%emt 0:02:28]} hxg4 {[%emt 0:00:47]} 46. d5 {[%emt 0:03:57]} Bb7 {[%emt 0:16:06]} 47. e6+ {[%emt 0:00:10]} Kf6 {[%emt 0:01:02]} 48. Qg2 {[%emt 0:00:08]} Qe3 {[%emt 0:03:28]} 49. Be4 {[%emt 0:01:47]} h5 {[%emt 0:01:08]} 50. Kh2 {[%emt 0:00:37]} Qf4+ {[%emt 0:01:16]} 0-1